Cogmind - Beta 9.6 @@@ ROGUE MODE // 2020.05.19 @ 16:17:07 Player: Aere Result: Destroyed by G-34 Mercenary with Small Laser Performance ------------- Evolutions (0) 0 Regions Visited (1) 200 Robots Destroyed (6) 30 Value Destroyed (123) 123 Prototype IDs (0) 0 Alien Tech Used (0) 0 Bonus (0) 0 TOTAL SCORE: 353 Bonus ------- None Cogmind --------- Core Integrity 0/250 Matter 300/300 Energy 100/100 System Corruption 0% Temperature Cool (12) Movement Core (300) Ox5 Location -10/Materials Parts ------- > --- POWER (1) -------- (None) > --- PROPULSION (2) --- (None) > --- UTILITY (2) ------ Large Storage Unit > --- WEAPON (2) ------- Datajack > --- INVENTORY (10) --- Aluminum Leg Structural Scanner Peak State ------------ > --- POWER ------------ Light Ion Engine > --- PROPULSION ------- Wheel Wheel > --- UTILITY ---------- Large Storage Unit Structural Scanner > --- WEAPON ----------- Medium Laser Datajack > --- INVENTORY -------- Aluminum Leg [Rating: 7] Favorites ----------- Power Light Ion Engine Engine Light Ion Engine Propulsion Wheel Leg Aluminum Leg Wheel Wheel Utility Large Storage Unit Device Tractor Beam Storage Large Storage Unit Weapon Medium Laser Energy Gun Medium Laser Ballistic Gun Light Assault Rifle Special Melee Weapon Datajack Build | -11 -10 ------- Run | Scr Mat Slots Evolved . | . . Power . | . . Propulsion . | . . Utility . | . . Weapon . | . . Parts Attached 16 | 6 10 Power 2 | 1 1 Engine 2 | 1 1 Core . | . . Reactor . | . . Propulsion 5 | 2 3 Treads . | . . Leg 1 | . 1 Wheel 4 | 2 2 Hover . | . . Flight . | . . Utility 4 | 1 3 Device 2 | . 2 Storage 2 | 1 1 Processor . | . . Hackware . | . . Protection . | . . Artifact . | . . Weapon 5 | 2 3 Energy Gun 2 | 1 1 Energy Cannon . | . . Ballistic Gun 2 | 1 1 Ballistic Cannon . | . . Launcher . | . . Special Weapon . | . . Impact Weapon . | . . Slashing Weapon . | . . Piercing Weapon . | . . Special Melee Weapon 1 | . 1 Unidentified Prototypes . | . . Parts Lost 11 | . 11 Power 2 | . 2 Propulsion 4 | . 4 Utility 2 | . 2 Weapon 3 | . 3 Highest Loss Streak 6 | . 6 Average Slot Usage (%) 64 | . 64 Engine 8 | . 8 Leg 4 | . 4 Wheel 14 | . 14 Device 4 | . 4 Storage 5 | . 5 Energy Gun 10 | . 10 Ballistic Gun 5 | . 5 Special Melee Weapon 10 | . 10 Naked Turns 8 | . 8 Heaviest Build 23 | 7 23 Greatest Support 20 | 20 20 Greatest Overweight (x) 6 | . 6 Average Overweight (x) . | . . Largest Inventory Capacity 10 | 4 10 Average Capacity 5 | 4 5 Most Carried 3 | 3 3 Average Carried . | . . Final Capacity 10 | 4 10 Final Carried 2 | 1 2 Class Distribution -------------------- 85% | Mutant 14% | Scavenger-Mutant Dominant Class ---------------- Mutant | -10/Materials Resources | -11 -10 ----------- Run | Scr Mat Matter Collected 385 | 281 104 Remotely 10 | . 10 Salvage Created 243 | 56 187 Parts 12 | 3 9 Haulers Intercepted . | . . Recyclers Shooed 1 | . 1 Parts Field Recycled . | . . Retrieved Matter . | . . Parts Self-Destructed . | . . Prevented . | . . Kills | -11 -10 ------- Run | Scr Mat Combat Hostiles Destroyed 3 | 1 2 Guns 3 | 1 2 Classes Destroyed 3 | 2 1 Worker 2 | 1 1 Recycler 1 | . 1 Grunt 3 | 1 2 Best Kill Streak 2 | 2 1 Combat Bots Only 1 | 1 1 Max Kills in Single Turn 1 | 1 1 Gunslinging . | . . Exploded . | . . Melee . | . . Uniques/NPCs Destroyed . | . . Combat | -11 -10 -------- Run | Scr Mat Damage Taken 759 | 42 717 Core 257 | 21 236 Absorbed by Shields . | . . Core Remaining (%) 91 | 91 . Volleys Fired 54 | 10 44 Largest 2 | 2 2 Hottest 70 | 70 50 Shots Fired 81 | 20 61 Gun 81 | 20 61 Cannon . | . . Launcher . | . . Special . | . . Kinetic 54 | 10 44 Thermal 27 | 10 17 Explosive . | . . Electromagnetic . | . . Robot Hit Streak 7 | 4 7 Robot Miss Streak 3 | 2 3 Penetration Max . | . . Secondary Targets . | . . Shots Hit Robots 53 | 13 40 Core Hits 15 | 3 12 Critical Hits . | . . Critical Kills . | . . Critical Parts Destroyed . | . . Melee Attacks 2 | . 2 Impact . | . . Slashing . | . . Piercing . | . . Sneak Attacks . | . . Combat Hostiles . | . . Follow-up Attacks . | . . Damage Inflicted 555 | 141 414 Guns 555 | 141 414 Cannons . | . . Explosions . | . . Melee . | . . Ramming . | . . Kinetic 318 | 54 264 Thermal 237 | 87 150 Explosive . | . . Electromagnetic . | . . Impact . | . . Slashing . | . . Piercing . | . . Highest Corruption . | . . Average Corruption . | . . Corruption Purged . | . . Overload Shots . | . . Overflow Damage . | . . Projectiles . | . . Explosions . | . . Melee . | . . Knockbacks . | . . Impact . | . . Kinetic . | . . Secondary . | . . Self-Inflicted Damage . | . . Shots . | . . Rammed . | . . Targets Rammed . | . . Kicked . | . . Crushed . | . . Highest Temperature 94 | 94 82 Average Temperature 27 | 41 20 Received Heat Transfer 426 | 24 402 Siege Activations . | . . Robots Corrupted . | . . Combat Hostiles . | . . Parts Fried . | . . Impact Corruptions . | . . Robots Melted . | . . Combat Hostiles . | . . Parts Melted . | . . Heat Transferred 703 | 259 444 Parts Sabotaged . | . . Parts Stolen . | . . Parts Stripped . | . . Power Chain Reactions . | . . Missiles Intercepted . | . . Alert | -11 -10 ------- Run | Scr Mat Peak Influence 75 | 25 75 Average Influence 31 | 2 39 Maximum Alert Level . | . . Low Security (%) 100 | 100 100 Level 1 . | . . Level 2 . | . . Level 3 . | . . Level 4 . | . . Level 5 . | . . High Security . | . . Max Security . | . . Squads Dispatched 2 | . 2 Investigation 1 | . 1 Extermination . | . . Reinforcement 1 | . 1 Assault . | . . Garrison . | . . Intercept . | . . Construction Impeded . | . . Haulers Reinforced . | . . Stealth | -11 -10 --------- Run | Scr Mat Distress Signals 1 | . 1 Communications Jammed . | . . Distress Signals . | . . Times Spotted 10 | 1 9 Peak Tracking Total 5 | 1 5 Tactical Retreats . | . . Traps | -11 -10 ------- Run | Scr Mat Traps Triggered 1 | . 1 Indirectly . | . . Trap Hack Attempts . | . . Triggered . | . . Disarmed . | . . Reprogrammed . | . . Reused . | . . Traps Extracted . | . . Installed . | . . Triggered . | . . Machines | -11 -10 ---------- Run | Scr Mat Machines Disabled . | . . Max in Single Turn . | . . Machines Sabotaged . | . . Garrisons Compromised . | . . Overloaded Fab Kills . | . . Fab Network Shutdowns . | . . Hacking | -11 -10 --------- Run | Scr Mat Machines Accessed . | . . Terminals . | . . Fabricators . | . . Repair Stations . | . . Recycling Units . | . . Scanalyzers . | . . Garrison Access . | . . Total Hacks . | . . Successful . | . . Failed . | . . Catastrophic . | . . Database Lockouts . | . . Manual . | . . Terminals . | . . Fabricators . | . . Repair Stations . | . . Recycling Units . | . . Scanalyzers . | . . Garrison Access . | . . Terminal Hacks . | . . Fabricator Hacks . | . . Repair Station Hacks . | . . Recycling Unit Hacks . | . . Scanalyzer . | . . Garrison Access Hacks . | . . Unauthorized Hacks . | . . Terminals . | . . Fabricators . | . . Repair Stations . | . . Recycling Units . | . . Scanalyzers . | . . Garrison Access . | . . Data Cores Recovered . | . . Used . | . . Hacking Detections . | . . Full Trace Events . | . . Feedback Events . | . . Feedback Blocked . | . . Robot Schematics Acquired . | . . Robots Built . | . . Matter . | . . Time . | . . Total Robot Build Rating . | . . Part Schematics Acquired . | . . Parts Built . | . . Matter . | . . Time . | . . Total Part Build Rating . | . . Parts Repaired . | . . Time . | . . Parts Recycled . | . . Recycled Matter . | . . Retrieved Matter . | . . Retrieved Components . | . . Parts Scanalyzed . | . . Part Schematics Acquired . | . . Parts Damaged . | . . Bothacking | -11 -10 ------------ Run | Scr Mat Used RIF Installer . | . . Robots Hacked 1 | . 1 Non-combat . | . . Combat 1 | . 1 Robot Hacks Applied 2 | . 2 parse_system 2 | . 2 Relay Couplers Released . | . . Robots Rewired . | . . Allies Hacked . | . . Hacks Repelled . | . . Allies | -11 -10 -------- Run | Scr Mat Total Allies . | . . Largest Group . | . . Highest-Rated Group . | . . Highest-Rated Ally . | . . Total Orders . | . . Ally Attacks . | . . Total Damage . | . . Kills . | . . Allies Corrupted . | . . Allies Melted . | . . Intel | -11 -10 ------- Run | Scr Mat Robot Analysis Total . | . . Derelict Logs Recovered . | . . Drone Launches . | . . Drone Recoveries . | . . Exploration | -11 -10 ------------- Run | Scr Mat Turns Passed 484 | 103 381 Spaces Moved 307 | 84 223 Core 39 | 17 22 Treads . | . . Legs 81 | . 81 Wheels 187 | 67 120 Hover . | . . Flight . | . . Fastest Speed 50 | 50 50 Average Speed 90 | 73 96 Slowest Speed 350 | 80 350 Overloaded Moves . | . . Propulsion Burnouts . | . . Robots Hopped . | . . Cave-ins Triggered . | . . Exploration Rate (%) 20 | 7 33 Regions Visited 1 Branch Regions . Pre-discovered Areas . | . . Known Exits Taken . | . . Unknown Exits Taken 1 | 1 . Scrap Searched . | . . Spaces Dug . | . . Terrain Destroyed . | . . Melee . | . . Projectile . | . . AOE . | . . Actions | -11 -10 --------- Run | Scr Mat Total 443 | 106 337 Wait 47 | . 47 Move 306 | 83 223 Hop . | . . Pick Up 15 | 7 8 Fast Attach . | . . Attach 16 | 6 10 Detach 3 | . 3 Swap . | . . Drop . | . . Fire 54 | 10 44 Melee 2 | . 2 Ram . | . . Kick . | . . Crush . | . . Escape Stasis . | . . Rewire . | . . Trap . | . . Miscellaneous . | . . Route ------- -11/Scrapyard -10/Materials (discovered 1 exit: [*Min]) History --------- Turn | Location | Event 2 | -11/Scrapyard | Met Revision 17 74 | -11/Scrapyard | Discovered new exit (range 8) 104 | -11/Scrapyard | Entered Materials 177 | -10/Materials | Core integrity fell below 50% 211 | -10/Materials | Discovered new exit (range 15) 219 | -10/Materials | Lost 6 parts (1p2n1u2w) 301 | -10/Materials | Build established: Mutant 480 | -10/Materials | Core integrity fell below 20% 485 | -10/Materials | Destroyed by G-34 Mercenary with Small Laser Last Messages --------------- 00379_ Triggered Alarm Trap. 00379_ An alarm sounds. 00379_ ALERT: Alarm triggered, dispatching investigation squad. 00392_ R-06 Scavenger destroyed. 00395_ Acquired 20 matter. 00397_ Acquired Tractor Beam. 00399_ Acquired 10 matter. 00452_ W-16 Scout sends out distress signal. 00462_ U-05 Engineer lays Concrete. 00472_ Jacked G-34 Mercenary... Right-click on available options for more info. Keyboard players can use Shift-a~z. >>parse_system Reading system data... 00473_ Med. Laser destroyed. 00474_ Tractor Beam destroyed. 00474_ Jacked G-34 Mercenary... >>parse_system Reading system data... 00477_ Wheel destroyed. 00481_ Lgt. Ion Engine destroyed. Map ----- +----------------------------------------------------+ | | | | | | | | | | | | | | | | | | | | | | | | | | | | | | | ???????????????????????????? | | ???????????????????????????? | | ???????????????????????????? | | ???????? "?????????????????? | | ??####???""????????????????? | | ??# #???? ???????????????? | | ??# #######+###########???? | | ??# #???? | | ??# #???? | | ?## #???? | | ?#T@ """" """" !| #???? | | ?## """" """" #???? | | ??# g"""" """" | #???? | | ??# #???? | | ??# g #???? | | ####g##### #???? | | # # #???? | | #""" """ / #???? | | #"R g""" # #???? | | #""" """ # #???? | | # ## ##### ####???? | | # """ ## #???# #??????? | | # """ ## #???# #??????? | | # """=+ #???# #??????? | | # ] [% ## #???# #??????? | | ###############???# #??????? | | ????????????????### ######## | | ????????????????# # | | ????????????????# # | | ????????????????# # | | ????????????????# + | | ????????????????# # | | ????????????????# ######## | | ?????########???# | | ?????# ] #???# | +----------------------------------------------------+ Best States ------------- Heat Dissipation 25 Energy Generation 10 Energy Capacity 125 Matter Stores 340 Matter Capacity 350 Sight Range 16 Terrain Scan Density 10 Evasion (%) 50 Item Schematics ----------------- None Robot Schematics ------------------ None Fabricated ------------ Nothing Alien Tech Used ----------------- None Achievements -------------- None Challenges ------------ None Game ------ Seed RelayHelicalScythe Manual? 0 Play Time 00:14:25 Cumulative 1.3 hours Start 2020.05.19 @ 16:01:22 End 2020.05.19 @ 16:17:07 Sessions 1 Manual Loads 0 Difficulty Rogue Special Mode None Game No. 2 Rogue 2 Adventurer 0 Explorer 0 Win Type - Total 0 Types 0/0/0/0/0/0/0 Lore% 0 Gallery% 2 Achievement% 2 Wizard Run 0 Options --------- ASCII 0 Keyboard 0 Movement Mouse Keybinds 0 Fullscreen 1 Font 24/Terminus Map View 113x50 Tactical HUD 1 Map Filters NONE Filters NONE Steam 1 RUN: 96c7aab5-d58e-4d54-96f9-7c542600d1a7